[Event "December 12 Early 2023"]
[Site "https://www.chess.com"]
[Date "2023.12.12"]
[Round "3"]
[White "Adla, Diego"]
[Black "Senft, Sean"]
[Result "1-0"]
[Board "91"]
[TimeControl "180+1"]
[WhiteFideId "100072"]
[BlackFideId "2044960"]
[WhiteElo "2660"]
[BlackElo "2474"]
[WhiteTeam "ARG"]
[BlackTeam "USA"]
[WhiteClock "0:01:19"]
[BlackClock "0:00:07"]

1. c4 {[%clk 0:02:56]}  c6 {[%clk 0:02:59]} 2. d4 {[%clk 0:02:56]}  d5 {[%clk 0:02:59]} 3. cxd5 {[%clk 0:02:56]}  cxd5 {[%clk 0:03:00]} 4. Nc3 {[%clk 0:02:56]}  Nf6 {[%clk 0:03:00]} 5. Bf4 {[%clk 0:02:57]}  Nc6 {[%clk 0:03:01]} 6. e3 {[%clk 0:02:57]}  a6 {[%clk 0:03:01]} 7. Bd3 {[%clk 0:02:56]}  Bg4 {[%clk 0:03:02]} 8. Qb3 {[%clk 0:02:55]}  Ra7 {[%clk 0:03:00]} 9. h3 {[%clk 0:02:48]}  Bh5 {[%clk 0:02:59]} 10. Nge2 {[%clk 0:02:44]}  e6 {[%clk 0:02:59]} 11. O-O {[%clk 0:02:43]}  Bd6 {[%clk 0:02:59]} 12. Rfc1 {[%clk 0:02:42]}  O-O {[%clk 0:02:59]} 13. Bxd6 {[%clk 0:02:40]}  Qxd6 {[%clk 0:02:59]} 14. Nf4 {[%clk 0:02:41]}  Bg6 {[%clk 0:02:58]} 15. Na4 {[%clk 0:02:40]}  b5 {[%clk 0:02:45]} 16. Nc5 {[%clk 0:02:37]}  Na5 {[%clk 0:02:38]} 17. Qc2 {[%clk 0:02:37]}  Rc7 {[%clk 0:02:26]} 18. b3 {[%clk 0:02:30]}  Rfc8 {[%clk 0:02:26]} 19. Qd2 {[%clk 0:02:28]}  Nd7 {[%clk 0:02:11]} 20. Nxg6 {[%clk 0:02:24]}  hxg6 {[%clk 0:02:10]} 21. Qxa5 {[%clk 0:02:24]}  Nxc5 {[%clk 0:02:09]} 22. dxc5 {[%clk 0:02:24]}  Rxc5 {[%clk 0:02:10]} 23. Rxc5 {[%clk 0:02:24]}  Rxc5 {[%clk 0:02:10]} 24. Qd2 {[%clk 0:02:23]}  Qc7 {[%clk 0:02:09]} 25. g3 {[%clk 0:02:22]}  a5 {[%clk 0:02:08]} 26. a3 {[%clk 0:02:19]}  Rc3 {[%clk 0:02:02]} 27. Bxb5 {[%clk 0:02:16]}  Rxb3 {[%clk 0:01:56]} 28. a4 {[%clk 0:02:16]}  Rc3 {[%clk 0:01:53]} 29. Rb1 {[%clk 0:02:14]}  Rc2 {[%clk 0:01:34]} 30. Qd1 {[%clk 0:02:10]}  Qc3 {[%clk 0:01:29]} 31. Qd3 {[%clk 0:02:07]}  Qc7 {[%clk 0:01:19]} 32. Rd1 {[%clk 0:02:04]}  Rb2 {[%clk 0:01:11]} 33. h4 {[%clk 0:02:04]}  Qc5 {[%clk 0:01:08]} 34. Qd4 {[%clk 0:02:01]}  Qc2 {[%clk 0:01:06]} 35. Rf1 {[%clk 0:02:02]}  Kh7 {[%clk 0:00:37]} 36. Qf4 {[%clk 0:02:00]}  f6 {[%clk 0:00:34]} 37. Qf3 {[%clk 0:01:52]}  Qd2 {[%clk 0:00:30]} 38. h5 {[%clk 0:01:50]}  g5 {[%clk 0:00:29]} 39. Qd1 {[%clk 0:01:47]}  Kh6 {[%clk 0:00:20]} 40. Qxd2 {[%clk 0:01:44]}  Rxd2 {[%clk 0:00:21]} 41. g4 {[%clk 0:01:45]}  f5 {[%clk 0:00:21]} 42. gxf5 {[%clk 0:01:45]}  exf5 {[%clk 0:00:21]} 43. Rc1 {[%clk 0:01:43]}  Kxh5 {[%clk 0:00:20]} 44. Rc7 {[%clk 0:01:43]}  Kg4 {[%clk 0:00:19]} 45. Kg2 {[%clk 0:01:42]}  g6 {[%clk 0:00:17]} 46. Rc6 {[%clk 0:01:41]}  Kh5 {[%clk 0:00:17]} 47. Ra6 {[%clk 0:01:40]}  f4 {[%clk 0:00:17]} 48. exf4 {[%clk 0:01:40]}  gxf4 {[%clk 0:00:18]} 49. Rxa5 {[%clk 0:01:40]}  Kg4 {[%clk 0:00:18]} 50. Bd7+ {[%clk 0:01:39]}  Kg5 {[%clk 0:00:16]} 51. Ra6 {[%clk 0:01:38]}  d4 {[%clk 0:00:14]} 52. Be8 {[%clk 0:01:38]}  d3 {[%clk 0:00:13]} 53. Rxg6+ {[%clk 0:01:37]}  Kf5 {[%clk 0:00:14]} 54. Rd6 {[%clk 0:01:36]}  Rd1 {[%clk 0:00:13]} 55. Bg6+ {[%clk 0:01:34]}  Ke5 {[%clk 0:00:13]} 56. Rxd3 {[%clk 0:01:33]}  Ra1 {[%clk 0:00:14]} 57. Be8 {[%clk 0:01:32]}  Ra2 {[%clk 0:00:12]} 58. Bb5 {[%clk 0:01:31]}  Rb2 {[%clk 0:00:12]} 59. Kf3 {[%clk 0:01:31]}  Ra2 {[%clk 0:00:11]} 60. Rb3 {[%clk 0:01:30]}  Kf5 {[%clk 0:00:11]} 61. Bc6 {[%clk 0:01:28]}  Kg5 {[%clk 0:00:10]} 62. Rb5+ {[%clk 0:01:28]}  Kh4 {[%clk 0:00:11]} 63. a5 {[%clk 0:01:28]}  Ra3+ {[%clk 0:00:07]} 64. Kxf4 {[%clk 0:01:27]}  Ra4+ {[%clk 0:00:08]} 65. Ke5 {[%clk 0:01:27]}  Ra2 {[%clk 0:00:08]} 66. f4 {[%clk 0:01:27]}  Kg4 {[%clk 0:00:08]} 67. Bd5 {[%clk 0:01:20]}  Rb2 {[%clk 0:00:07]} 68. Rxb2 {[%clk 0:01:19]} 1-0

[Event "December 12 Early 2023"]
[Site "https://www.chess.com"]
[Date "2023.12.12"]
[Round "3"]
[White "Souleidis, Georgios"]
[Black "Goncalves, Davi Sulzbacher"]
[Result "1/2-1/2"]
[Board "92"]
[TimeControl "180+1"]
[WhiteFideId "4206827"]
[BlackFideId "2154510"]
[WhiteElo "2652"]
[BlackElo "2472"]
[WhiteTeam "GRE"]
[BlackTeam "BRA"]
[WhiteClock "0:00:08"]
[BlackClock "0:00:14"]

1. e4 {[%clk 0:02:50]}  c5 {[%clk 0:02:59]} 2. Nf3 {[%clk 0:02:48]}  Nc6 {[%clk 0:02:59]} 3. Bc4 {[%clk 0:02:48]}  e6 {[%clk 0:02:59]} 4. O-O {[%clk 0:02:48]}  d5 {[%clk 0:02:56]} 5. Bb5 {[%clk 0:02:48]}  dxe4 {[%clk 0:02:53]} 6. Ne5 {[%clk 0:02:48]}  Ne7 {[%clk 0:02:49]} 7. Nc3 {[%clk 0:02:36]}  Qd4 {[%clk 0:02:41]} 8. Nxc6 {[%clk 0:02:12]}  Nxc6 {[%clk 0:02:40]} 9. Bxc6+ {[%clk 0:02:07]}  bxc6 {[%clk 0:02:40]} 10. Qe2 {[%clk 0:02:01]}  f5 {[%clk 0:02:37]} 11. b3 {[%clk 0:01:42]}  Bd6 {[%clk 0:02:33]} 12. Bb2 {[%clk 0:01:39]}  Qb4 {[%clk 0:02:19]} 13. d3 {[%clk 0:01:23]}  Ba6 {[%clk 0:02:16]} 14. Rfe1 {[%clk 0:01:02]}  Be5 {[%clk 0:02:07]} 15. a3 {[%clk 0:00:57]}  Qa5 {[%clk 0:01:59]} 16. b4 {[%clk 0:00:49]}  cxb4 {[%clk 0:01:58]} 17. axb4 {[%clk 0:00:50]}  Qxb4 {[%clk 0:01:58]} 18. Rxa6 {[%clk 0:00:45]}  Qxb2 {[%clk 0:01:58]} 19. Nxe4 {[%clk 0:00:33]}  fxe4 {[%clk 0:01:51]} 20. Qxe4 {[%clk 0:00:34]}  O-O {[%clk 0:01:52]} 21. Qxe5 {[%clk 0:00:34]}  Qxc2 {[%clk 0:01:40]} 22. Qxe6+ {[%clk 0:00:34]}  Kh8 {[%clk 0:01:41]} 23. Qe2 {[%clk 0:00:35]}  Rae8 {[%clk 0:00:47]} 24. Qxe8 {[%clk 0:00:35]}  Qxf2+ {[%clk 0:00:48]} 25. Kh1 {[%clk 0:00:35]}  h6 {[%clk 0:00:49]} 26. Qxf8+ {[%clk 0:00:18]}  Qxf8 {[%clk 0:00:50]} 27. Rea1 {[%clk 0:00:17]}  Qf5 {[%clk 0:00:43]} 28. Rxa7 {[%clk 0:00:15]}  Qxd3 {[%clk 0:00:42]} 29. h3 {[%clk 0:00:15]}  Qd4 {[%clk 0:00:38]} 30. R7a6 {[%clk 0:00:12]}  c5 {[%clk 0:00:37]} 31. Rc1 {[%clk 0:00:12]}  Qe3 {[%clk 0:00:36]} 32. Raa1 {[%clk 0:00:10]}  Qd4 {[%clk 0:00:34]} 33. Ra2 {[%clk 0:00:10]}  h5 {[%clk 0:00:20]} 34. Rac2 {[%clk 0:00:11]}  h4 {[%clk 0:00:21]} 35. Rxc5 {[%clk 0:00:11]}  Kh7 {[%clk 0:00:19]} 36. R5c4 {[%clk 0:00:11]}  Qf6 {[%clk 0:00:19]} 37. Rg4 {[%clk 0:00:09]}  Qf2 {[%clk 0:00:18]} 38. Rgc4 {[%clk 0:00:05]}  Qg3 {[%clk 0:00:16]} 39. R4c2 {[%clk 0:00:06]}  Qe3 {[%clk 0:00:16]} 40. Rc3 {[%clk 0:00:06]}  Qd2 {[%clk 0:00:16]} 41. Rc7 {[%clk 0:00:07]}  Qf4 {[%clk 0:00:16]} 42. R7c3 {[%clk 0:00:05]}  Qd2 {[%clk 0:00:16]} 43. Rc4 {[%clk 0:00:05]}  Qg5 {[%clk 0:00:15]} 44. Rd1 {[%clk 0:00:05]}  Qg3 {[%clk 0:00:15]} 45. Rcd4 {[%clk 0:00:02]}  Qf2 {[%clk 0:00:13]} 46. R4d3 {[%clk 0:00:03]}  Qe2 {[%clk 0:00:13]} 47. Rd4 {[%clk 0:00:04]}  Qf2 {[%clk 0:00:13]} 48. Rd5 {[%clk 0:00:04]}  Qg3 {[%clk 0:00:13]} 49. Rd7 {[%clk 0:00:05]}  Qf2 {[%clk 0:00:12]} 50. R1d3 {[%clk 0:00:06]}  Qe1+ {[%clk 0:00:12]} 51. Kh2 {[%clk 0:00:06]}  Qe5+ {[%clk 0:00:13]} 52. Kg1 {[%clk 0:00:07]}  Qe1+ {[%clk 0:00:14]} 53. Kh2 {[%clk 0:00:07]}  Qe5+ {[%clk 0:00:14]} 54. Kg1 {[%clk 0:00:07]}  Qe1+ {[%clk 0:00:14]} 55. Kh2 {[%clk 0:00:08]} 1/2-1/2

[Event "December 12 Early 2023"]
[Site "https://www.chess.com"]
[Date "2023.12.12"]
[Round "3"]
[White "Hrebenshchykova, Yelyzaveta"]
[Black "Koellner, Ruben Gideon"]
[Result "1/2-1/2"]
[Board "93"]
[TimeControl "180+1"]
[WhiteFideId "14159899"]
[BlackFideId "12993093"]
[WhiteElo "2470"]
[BlackElo "2650"]
[WhiteTeam "UKR"]
[BlackTeam "GER"]
[WhiteClock "0:00:05"]
[BlackClock "0:01:02"]

1. e4 {[%clk 0:03:00]}  d6 {[%clk 0:03:00]} 2. d4 {[%clk 0:02:58]}  Nf6 {[%clk 0:03:00]} 3. Nc3 {[%clk 0:02:57]}  e5 {[%clk 0:03:01]} 4. Nf3 {[%clk 0:02:57]}  Nbd7 {[%clk 0:03:01]} 5. Rg1 {[%clk 0:02:52]}  c6 {[%clk 0:03:00]} 6. g4 {[%clk 0:02:50]}  h6 {[%clk 0:03:00]} 7. Be3 {[%clk 0:02:47]}  b5 {[%clk 0:02:58]} 8. a3 {[%clk 0:02:39]}  Be7 {[%clk 0:02:58]} 9. h4 {[%clk 0:02:36]}  Nf8 {[%clk 0:02:54]} 10. Nd2 {[%clk 0:02:12]}  Ng6 {[%clk 0:02:48]} 11. g5 {[%clk 0:02:07]}  hxg5 {[%clk 0:02:45]} 12. hxg5 {[%clk 0:02:08]}  Nh5 {[%clk 0:02:45]} 13. Rh1 {[%clk 0:02:00]}  Nhf4 {[%clk 0:02:40]} 14. Rxh8+ {[%clk 0:01:57]}  Nxh8 {[%clk 0:02:41]} 15. Bxf4 {[%clk 0:01:38]}  exf4 {[%clk 0:02:42]} 16. Qh5 {[%clk 0:01:39]}  Ng6 {[%clk 0:02:41]} 17. Nf3 {[%clk 0:01:38]}  Qd7 {[%clk 0:02:39]} 18. d5 {[%clk 0:01:09]}  Qg4 {[%clk 0:02:38]} 19. Qxg4 {[%clk 0:01:09]}  Bxg4 {[%clk 0:02:39]} 20. Be2 {[%clk 0:01:09]}  Bxf3 {[%clk 0:02:23]} 21. Bxf3 {[%clk 0:01:09]}  cxd5 {[%clk 0:02:20]} 22. exd5 {[%clk 0:01:09]}  a6 {[%clk 0:02:18]} 23. Ne4 {[%clk 0:01:05]}  Ne5 {[%clk 0:02:14]} 24. Ke2 {[%clk 0:01:05]}  Rc8 {[%clk 0:02:09]} 25. c3 {[%clk 0:01:05]}  a5 {[%clk 0:02:00]} 26. Rh1 {[%clk 0:01:04]}  Kd7 {[%clk 0:01:59]} 27. Rh7 {[%clk 0:00:58]}  g6 {[%clk 0:01:59]} 28. Bg2 {[%clk 0:00:55]}  Rc4 {[%clk 0:01:57]} 29. f3 {[%clk 0:00:44]}  b4 {[%clk 0:01:56]} 30. axb4 {[%clk 0:00:42]}  axb4 {[%clk 0:01:57]} 31. Nd2 {[%clk 0:00:42]}  Rc5 {[%clk 0:01:55]} 32. cxb4 {[%clk 0:00:40]}  Rxd5 {[%clk 0:01:54]} 33. Ne4 {[%clk 0:00:35]}  Rb5 {[%clk 0:01:53]} 34. Bh3+ {[%clk 0:00:32]}  Kc7 {[%clk 0:01:53]} 35. Nc3 {[%clk 0:00:32]}  Rb7 {[%clk 0:01:38]} 36. Rh8 {[%clk 0:00:26]}  Kc6 {[%clk 0:01:32]} 37. b5+ {[%clk 0:00:24]}  Kb6 {[%clk 0:01:23]} 38. Ra8 {[%clk 0:00:13]}  Bxg5 {[%clk 0:01:23]} 39. Ra6+ {[%clk 0:00:12]}  Kc5 {[%clk 0:01:20]} 40. Ne4+ {[%clk 0:00:02]}  Kxb5 {[%clk 0:01:20]} 41. Rxd6 {[%clk 0:00:03]}  Be7 {[%clk 0:01:18]} 42. Rd5+ {[%clk 0:00:03]}  Ka4 {[%clk 0:01:07]} 43. Rxe5 {[%clk 0:00:04]}  Rxb2+ {[%clk 0:01:06]} 44. Nd2 {[%clk 0:00:04]}  Bb4 {[%clk 0:01:06]} 45. Rd5 {[%clk 0:00:05]}  f5 {[%clk 0:00:59]} 46. Rd7 {[%clk 0:00:02]}  Bc3 {[%clk 0:00:59]} 47. Kd1 {[%clk 0:00:01]}  Kb4 {[%clk 0:00:58]} 48. Ke2 {[%clk 0:00:02]}  Kc5 {[%clk 0:00:57]} 49. Kd1 {[%clk 0:00:02]}  Rxd2+ {[%clk 0:00:57]} 50. Rxd2 {[%clk 0:00:02]}  Bxd2 {[%clk 0:00:58]} 51. Kxd2 {[%clk 0:00:03]}  Kd4 {[%clk 0:00:59]} 52. Ke2 {[%clk 0:00:03]}  Kc3 {[%clk 0:00:59]} 53. Kf2 {[%clk 0:00:04]}  Kd2 {[%clk 0:00:59]} 54. Bf1 {[%clk 0:00:04]}  Kc3 {[%clk 0:00:59]} 55. Bb5 {[%clk 0:00:04]}  Kd4 {[%clk 0:00:58]} 56. Bd7 {[%clk 0:00:04]}  Ke5 {[%clk 0:00:58]} 57. Kg2 {[%clk 0:00:03]}  g5 {[%clk 0:00:59]} 58. Bc8 {[%clk 0:00:03]}  Kf6 {[%clk 0:00:59]} 59. Kh3 {[%clk 0:00:03]}  Kg6 {[%clk 0:01:00]} 60. Bd7 {[%clk 0:00:03]}  Kf6 {[%clk 0:01:00]} 61. Bc8 {[%clk 0:00:04]}  Ke5 {[%clk 0:01:01]} 62. Bd7 {[%clk 0:00:04]}  Kf6 {[%clk 0:01:02]} 63. Kg2 {[%clk 0:00:05]}  Kg6 {[%clk 0:01:02]} 64. Kh3 {[%clk 0:00:05]}  Kf6 {[%clk 0:01:02]} 1/2-1/2

[Event "December 12 Early 2023"]
[Site "https://www.chess.com"]
[Date "2023.12.12"]
[Round "3"]
[White "Omelja, Artem"]
[Black "Horcajuelo Rocamora, Martin"]
[Result "1-0"]
[Board "97"]
[TimeControl "180+1"]
[WhiteFideId "14119846"]
[BlackFideId "24573027"]
[WhiteElo "2640"]
[BlackElo "2454"]
[WhiteTeam "UKR"]
[BlackTeam "ESP"]
[WhiteClock "0:00:19"]
[BlackClock "0:00:09"]

1. d4 {[%clk 0:03:00]}  Nf6 {[%clk 0:02:28]} 2. c4 {[%clk 0:02:59]}  c5 {[%clk 0:02:28]} 3. d5 {[%clk 0:02:59]}  b5 {[%clk 0:02:28]} 4. cxb5 {[%clk 0:03:00]}  a6 {[%clk 0:02:28]} 5. Nc3 {[%clk 0:03:01]}  axb5 {[%clk 0:02:05]} 6. e4 {[%clk 0:03:00]}  b4 {[%clk 0:01:58]} 7. Nb5 {[%clk 0:03:00]}  d6 {[%clk 0:01:57]} 8. a4 {[%clk 0:03:00]}  g6 {[%clk 0:01:57]} 9. Bd3 {[%clk 0:02:59]}  Bg7 {[%clk 0:01:57]} 10. Qc2 {[%clk 0:02:59]}  O-O {[%clk 0:01:53]} 11. Nf3 {[%clk 0:02:59]}  Na6 {[%clk 0:01:48]} 12. O-O {[%clk 0:02:58]}  Nc7 {[%clk 0:01:43]} 13. Rb1 {[%clk 0:02:46]}  Ba6 {[%clk 0:01:33]} 14. Nxc7 {[%clk 0:02:44]}  Bxd3 {[%clk 0:01:33]} 15. Qxd3 {[%clk 0:02:44]}  Qxc7 {[%clk 0:01:33]} 16. b3 {[%clk 0:02:44]}  c4 {[%clk 0:01:29]} 17. bxc4 {[%clk 0:02:36]}  Rxa4 {[%clk 0:01:28]} 18. Nd4 {[%clk 0:02:36]}  Nd7 {[%clk 0:01:24]} 19. Nc6 {[%clk 0:02:34]}  Ne5 {[%clk 0:01:21]} 20. Qb3 {[%clk 0:02:33]}  Rfa8 {[%clk 0:01:16]} 21. Nxe5 {[%clk 0:02:29]}  Bxe5 {[%clk 0:01:17]} 22. Be3 {[%clk 0:02:29]}  Bc3 {[%clk 0:01:15]} 23. c5 {[%clk 0:02:25]}  dxc5 {[%clk 0:01:10]} 24. Qc4 {[%clk 0:02:25]}  R8a5 {[%clk 0:01:10]} 25. Rfd1 {[%clk 0:02:23]}  Qe5 {[%clk 0:00:50]} 26. f4 {[%clk 0:02:06]}  Qf6 {[%clk 0:00:46]} 27. e5 {[%clk 0:02:03]}  Qf5 {[%clk 0:00:46]} 28. Bxc5 {[%clk 0:01:54]}  Qc2 {[%clk 0:00:41]} 29. Bxe7 {[%clk 0:01:44]}  Bd4+ {[%clk 0:00:29]} 30. Qxd4 {[%clk 0:01:41]}  Ra2 {[%clk 0:00:23]} 31. Qd2 {[%clk 0:00:53]}  Qxd2 {[%clk 0:00:18]} 32. Rxd2 {[%clk 0:00:54]}  Rxd2 {[%clk 0:00:18]} 33. Bxb4 {[%clk 0:00:42]}  Rb5 {[%clk 0:00:18]} 34. Bxd2 {[%clk 0:00:30]}  Rxb1+ {[%clk 0:00:19]} 35. Kf2 {[%clk 0:00:30]}  Kf8 {[%clk 0:00:19]} 36. Kf3 {[%clk 0:00:29]}  Ke8 {[%clk 0:00:20]} 37. Ke4 {[%clk 0:00:29]}  Kd7 {[%clk 0:00:20]} 38. f5 {[%clk 0:00:22]}  Rg1 {[%clk 0:00:17]} 39. g3 {[%clk 0:00:20]}  Rg2 {[%clk 0:00:17]} 40. e6+ {[%clk 0:00:20]}  fxe6 {[%clk 0:00:16]} 41. fxe6+ {[%clk 0:00:21]}  Ke8 {[%clk 0:00:15]} 42. Bg5 {[%clk 0:00:18]}  Rxh2 {[%clk 0:00:15]} 43. d6 {[%clk 0:00:19]}  Re2+ {[%clk 0:00:09]} 44. Kd5 {[%clk 0:00:19]} 1-0

[Event "December 12 Early 2023"]
[Site "https://www.chess.com"]
[Date "2023.12.12"]
[Round "3"]
[White "Golubev, Mikhail"]
[Black "Foerster-Yialamas, Lucas"]
[Result "1-0"]
[Board "98"]
[TimeControl "180+1"]
[WhiteFideId "14100983"]
[BlackFideId "30901774"]
[WhiteElo "2639"]
[BlackElo "2453"]
[WhiteTeam "UKR"]
[BlackTeam "GER"]
[WhiteClock "0:00:22"]
[BlackClock "0:00:05"]

1. e4 {[%clk 0:03:00]}  e5 {[%clk 0:02:57]} 2. Nf3 {[%clk 0:03:00]}  Nc6 {[%clk 0:02:56]} 3. Bc4 {[%clk 0:03:01]}  Nf6 {[%clk 0:02:55]} 4. Ng5 {[%clk 0:02:59]}  d5 {[%clk 0:02:54]} 5. exd5 {[%clk 0:03:00]}  Na5 {[%clk 0:02:53]} 6. Bb5+ {[%clk 0:03:00]}  c6 {[%clk 0:02:54]} 7. dxc6 {[%clk 0:03:00]}  bxc6 {[%clk 0:02:54]} 8. Bd3 {[%clk 0:03:00]}  Ng4 {[%clk 0:02:27]} 9. Nh3 {[%clk 0:02:59]}  Bc5 {[%clk 0:02:15]} 10. O-O {[%clk 0:02:53]}  O-O {[%clk 0:02:06]} 11. Be2 {[%clk 0:02:48]}  f5 {[%clk 0:02:02]} 12. d3 {[%clk 0:02:32]}  h6 {[%clk 0:01:34]} 13. c3 {[%clk 0:02:23]}  Nb7 {[%clk 0:01:31]} 14. Na3 {[%clk 0:02:03]}  Be6 {[%clk 0:01:11]} 15. Nc2 {[%clk 0:02:01]}  Qh4 {[%clk 0:00:59]} 16. d4 {[%clk 0:01:51]}  Bb6 {[%clk 0:00:56]} 17. dxe5 {[%clk 0:01:42]}  Rad8 {[%clk 0:00:43]} 18. Qe1 {[%clk 0:01:41]}  Bd5 {[%clk 0:00:28]} 19. Bxg4 {[%clk 0:00:56]}  fxg4 {[%clk 0:00:25]} 20. Nf4 {[%clk 0:00:56]}  Bc4 {[%clk 0:00:16]} 21. Ng6 {[%clk 0:00:46]}  Bxf2+ {[%clk 0:00:08]} 22. Rxf2 {[%clk 0:00:32]}  Qxf2+ {[%clk 0:00:07]} 23. Qxf2 {[%clk 0:00:32]}  Rd1+ {[%clk 0:00:07]} 24. Ne1 {[%clk 0:00:32]}  Rxf2 {[%clk 0:00:04]} 25. Kxf2 {[%clk 0:00:33]}  Nc5 {[%clk 0:00:03]} 26. b3 {[%clk 0:00:32]}  Bf7 {[%clk 0:00:02]} 27. Nf4 {[%clk 0:00:30]}  Ne4+ {[%clk 0:00:02]} 28. Ke3 {[%clk 0:00:30]}  Nxc3 {[%clk 0:00:02]} 29. Nfd3 {[%clk 0:00:29]}  Nd5+ {[%clk 0:00:02]} 30. Ke2 {[%clk 0:00:28]}  Nc3+ {[%clk 0:00:03]} 31. Kf2 {[%clk 0:00:28]}  Nd5 {[%clk 0:00:03]} 32. Bb2 {[%clk 0:00:27]}  Rxa1 {[%clk 0:00:02]} 33. Bxa1 {[%clk 0:00:26]}  Bg6 {[%clk 0:00:03]} 34. Bd4 {[%clk 0:00:25]}  Kf7 {[%clk 0:00:03]} 35. Nc5 {[%clk 0:00:25]}  Nb4 {[%clk 0:00:02]} 36. a3 {[%clk 0:00:24]}  Nd5 {[%clk 0:00:03]} 37. Ned3 {[%clk 0:00:24]}  Bxd3 {[%clk 0:00:02]} 38. Nxd3 {[%clk 0:00:23]}  Ke6 {[%clk 0:00:03]} 39. Kg3 {[%clk 0:00:23]}  h5 {[%clk 0:00:03]} 40. Nf4+ {[%clk 0:00:23]}  Kf5 {[%clk 0:00:01]} 41. Nxd5 {[%clk 0:00:23]}  cxd5 {[%clk 0:00:02]} 42. Bb2 {[%clk 0:00:22]}  g5 {[%clk 0:00:02]} 43. Kf2 {[%clk 0:00:22]}  h4 {[%clk 0:00:03]} 44. g3 {[%clk 0:00:21]}  h3 {[%clk 0:00:02]} 45. Ke3 {[%clk 0:00:20]}  Ke6 {[%clk 0:00:02]} 46. Kd4 {[%clk 0:00:20]}  a6 {[%clk 0:00:03]} 47. Bc3 {[%clk 0:00:21]}  Kf5 {[%clk 0:00:03]} 48. b4 {[%clk 0:00:21]}  a5 {[%clk 0:00:03]} 49. bxa5 {[%clk 0:00:21]}  Ke6 {[%clk 0:00:03]} 50. a6 {[%clk 0:00:22]}  Kd7 {[%clk 0:00:04]} 51. a7 {[%clk 0:00:22]}  Kc7 {[%clk 0:00:04]} 52. a8=Q {[%clk 0:00:21]}  Kb6 {[%clk 0:00:05]} 53. Qxd5 {[%clk 0:00:21]}  Kc7 {[%clk 0:00:05]} 54. Qd6+ {[%clk 0:00:21]}  Kb7 {[%clk 0:00:04]} 55. e6 {[%clk 0:00:21]}  Kc8 {[%clk 0:00:04]} 56. e7 {[%clk 0:00:22]}  Kb7 {[%clk 0:00:05]} 57. e8=Q {[%clk 0:00:21]}  Ka7 {[%clk 0:00:05]} 58. Qeb8# {[%clk 0:00:22]} 1-0

[Event "December 12 Early 2023"]
[Site "https://www.chess.com"]
[Date "2023.12.12"]
[Round "3"]
[White "Khromkin, Andrey"]
[Black "Ovetchkin, Roman"]
[Result "0-1"]
[Board "100"]
[TimeControl "180+1"]
[WhiteFideId "4154126"]
[BlackFideId "4119991"]
[WhiteElo "2451"]
[BlackElo "2635"]
[WhiteTeam "RUS"]
[BlackTeam "RUS"]
[WhiteClock "0:00:00"]
[BlackClock "0:01:05"]

1. d4 {[%clk 0:02:52]}  Nf6 {[%clk 0:02:59]} 2. c4 {[%clk 0:02:51]}  c5 {[%clk 0:02:57]} 3. Nf3 {[%clk 0:02:51]}  cxd4 {[%clk 0:02:57]} 4. Nxd4 {[%clk 0:02:51]}  a6 {[%clk 0:02:56]} 5. Nc3 {[%clk 0:02:50]}  b6 {[%clk 0:02:53]} 6. e4 {[%clk 0:02:44]}  d6 {[%clk 0:02:50]} 7. g3 {[%clk 0:02:43]}  e6 {[%clk 0:02:43]} 8. Bg2 {[%clk 0:02:43]}  Ra7 {[%clk 0:02:43]} 9. O-O {[%clk 0:02:42]}  Rc7 {[%clk 0:02:42]} 10. Qe2 {[%clk 0:02:40]}  Bb7 {[%clk 0:02:38]} 11. Be3 {[%clk 0:02:27]}  Nbd7 {[%clk 0:02:36]} 12. Rac1 {[%clk 0:02:24]}  Be7 {[%clk 0:02:35]} 13. f4 {[%clk 0:02:12]}  Qa8 {[%clk 0:02:33]} 14. Bf2 {[%clk 0:02:11]}  O-O {[%clk 0:02:31]} 15. b3 {[%clk 0:01:43]}  Rfc8 {[%clk 0:02:27]} 16. Nb1 {[%clk 0:00:54]}  b5 {[%clk 0:02:14]} 17. Nd2 {[%clk 0:00:54]}  g6 {[%clk 0:02:07]} 18. Rfe1 {[%clk 0:00:50]}  e5 {[%clk 0:01:54]} 19. Nc2 {[%clk 0:00:38]}  bxc4 {[%clk 0:01:42]} 20. Nxc4 {[%clk 0:00:37]}  exf4 {[%clk 0:01:35]} 21. gxf4 {[%clk 0:00:37]}  Nh5 {[%clk 0:01:35]} 22. Qe3 {[%clk 0:00:32]}  d5 {[%clk 0:01:25]} 23. exd5 {[%clk 0:00:29]}  Bc5 {[%clk 0:01:25]} 24. Nd4 {[%clk 0:00:28]}  Ndf6 {[%clk 0:01:20]} 25. Qd2 {[%clk 0:00:13]}  Bxd5 {[%clk 0:01:15]} 26. Bxd5 {[%clk 0:00:11]}  Qxd5 {[%clk 0:01:14]} 27. Re5 {[%clk 0:00:12]}  Qa8 {[%clk 0:01:11]} 28. Ne3 {[%clk 0:00:05]}  Bd6 {[%clk 0:01:06]} 29. Rxc7 {[%clk 0:00:05]}  Rxc7 {[%clk 0:01:06]} 30. Rxh5 {[%clk 0:00:05]}  Nxh5 {[%clk 0:01:06]} 31. Nef5 {[%clk 0:00:00]}  Bxf4 {[%clk 0:01:05]} 0-1